fUST/lending_fUST_20240807
["ID","MTS","AMOUNT","RATE_DAILY","PERIOD"]
[334338552,1722994242232,-150.112233,0.00022,5]
[334338554,1722994242242,-150.112233,0.000222,4]
[334338555,1722994242251,-600.0,0.00022373,2]
[334338557,1722994242260,-3141.38902307,0.00022426,2]
[334338559,1722994242270,-587.0,0.00022601,2]
[334338561,1722994242280,-154.85963796,0.00022626,2]
[334338563,1722994242290,-154.65072461,0.00022626,2]
[334338565,1722994242300,-556.13837088,0.00022626,2]
[334338567,1722994242310,-10997.58390819,0.00022626,2]
[334338569,1722994242322,-155.30339985,0.00022626,2]
[334338572,1722994242339,-154.70856937,0.00022626,2]
[334338573,1722994242348,-154.74393826,0.00022626,2]
[334338575,1722994242357,-154.86470931,0.00022626,2]
[334338577,1722994242366,-1326.93168006,0.00022881,2]
[334338579,1722994242376,-600.0,0.00022973,2]
[334338581,1722994242385,-1489.22809617,0.00023,2]
[334338583,1722994242395,-150.112233,0.000234,3]
[334338585,1722994242404,-150.112233,0.000237,5]
[334338587,1722994242413,-150.112233,0.000247,2]
[334338589,1722994242423,-800.0,0.00024714,2]
[334338591,1722994242432,-823.0,0.00024861,2]
[334338593,1722994242442,-1363.53156257,0.00025,2]
[334338595,1722994242453,-150.112233,0.000252,5]
[334338597,1722994242463,-1326.93168006,0.00025737,2]
[334338599,1722994242472,-3141.38902307,0.00025813,2]
[334338601,1722994242481,-150.112233,0.000261,10]
[334338603,1722994242491,-150.112233,0.000268,8]
[334338605,1722994242501,-225.874995,0.0002681,2]
[334338607,1722994242510,-167.0,0.00027,2]
[334338609,1722994242520,-1000.0,0.00027305,2]
[334338611,1722994242531,-266.6760068,0.0002739,2]
[334338613,1722994242541,-628.22678493,0.00027468,2]
[334338615,1722994242551,-150.112233,0.000275,5]
[334338617,1722994242561,-173.43065437,0.00027905,5]
[334338619,1722994242572,-150.112233,0.000283,7]
[334338621,1722994242581,-1326.93168006,0.00028592,2]
[334338623,1722994242591,-150.112233,0.000288,6]
[334338625,1722994242600,-3141.38902307,0.000292,2]
[334338627,1722994242610,-150.112233,0.000298,10]
[334338629,1722994242620,-42291.6852243,0.0002999,4]
[334338631,1722994242630,-4817.16,0.0003,96]
[334338633,1722994242640,-151.0,0.0003,120]
[334338635,1722994242650,-41554.66177612,0.0003,2]
[334338637,1722994242660,-1200.0,0.000301,2]
[334338639,1722994242669,-150.112233,0.000302,9]
[334338641,1722994242679,-4000.0,0.0003068,30]
[334338643,1722994242688,-150.112233,0.000314,7]
[334338645,1722994242698,-42291.6852243,0.00031438,4]
[334338647,1722994242708,-1326.93168006,0.00031448,2]
[334338649,1722994242718,-150.112233,0.000315,5]
[334338651,1722994242727,-183.481851,0.00031507,120]
[334338653,1722994242737,-5183.24410926,0.00031734,2]
[334338655,1722994242752,-2000.0,0.00031939,2]
[334338657,1722994242762,-200.75161806,0.00032,120]
[334338659,1722994242772,-5183.24410926,0.00032043,2]
[334338661,1722994242781,-3000.0,0.000322,11]
[334338663,1722994242791,-3000.0,0.0003221,11]
[334338665,1722994242801,-5183.24410926,0.00032215,2]
[334338667,1722994242810,-3000.0,0.0003222,11]
[334338669,1722994242821,-3000.0,0.0003223,11]
[334338671,1722994242832,-3000.0,0.0003224,11]
[334338673,1722994242843,-3000.0,0.0003225,11]
[334338675,1722994242852,-3000.0,0.0003226,11]
[334338677,1722994242861,-3000.0,0.0003227,11]
[334338679,1722994242871,-3000.0,0.0003228,11]
[334338681,1722994242880,-42291.6852243,0.0003228,4]
[334338683,1722994242890,-3000.0,0.0003229,11]
[334338685,1722994242900,-3000.0,0.000323,11]
[334338687,1722994242909,-3000.0,0.0003231,11]
[334338689,1722994242919,-3000.0,0.0003232,11]
[334338691,1722994242929,-297.0053248,0.00032329,2]
[334338693,1722994242938,-3000.0,0.0003233,11]
[334338695,1722994242948,-1069.19680914,0.0003233,2]
[334338697,1722994242958,-3000.0,0.0003234,11]
[334338699,1722994242967,-3000.0,0.0003235,11]
[334338701,1722994242977,-3000.0,0.0003236,11]
[334338703,1722994242987,-3000.0,0.0003237,11]
[334338705,1722994242996,-3000.0,0.0003238,11]
[334338707,1722994243006,-3000.0,0.0003239,11]
[334338709,1722994243016,-3000.0,0.000324,11]
[334338711,1722994243025,-3000.0,0.0003241,11]
[334338713,1722994243034,-5183.24410926,0.00032417,2]
[334338715,1722994243043,-3000.0,0.0003242,12]
[334338717,1722994243053,-42291.6852243,0.0003242,4]
[334338719,1722994243062,-3000.0,0.0003243,12]
[334338721,1722994243081,-3000.0,0.0003244,12]
[334338723,1722994243090,-3000.0,0.0003245,12]
[334338725,1722994243099,-3000.0,0.0003246,12]
[334338727,1722994243109,-3000.0,0.0003247,12]
[334338729,1722994243118,-3000.0,0.0003248,12]
[334338731,1722994243128,-3000.0,0.0003249,12]
[334338734,1722994243137,-3000.0,0.000325,12]
[334338736,1722994243147,-3000.0,0.0003251,12]
[334338741,1722994243157,-3000.0,0.0003252,12]
[334338747,1722994243167,-3000.0,0.0003253,12]
[334338750,1722994243177,-3000.0,0.0003254,12]
[334338756,1722994243187,-3000.0,0.0003255,12]
[334338760,1722994243196,-3000.0,0.0003256,12]
[334338763,1722994243204,-3000.0,0.0003257,12]
[334338766,1722994243213,-42291.6852243,0.00032577,4]
[334338768,1722994243223,-3000.0,0.0003258,12]
[334338770,1722994243234,-3141.38902307,0.00032587,2]
[334338772,1722994243244,-5938.206892,0.0003259,12]
[334338774,1722994243254,-5183.24410929,0.00032648,2]
[334338776,1722994243263,-4252.32987293,0.0003268,30]
[334338778,1722994243274,-150.0,0.00032743,2]
[334338780,1722994243284,-38074.93847948,0.00032766,5]
[334338783,1722994243302,-28889.56894051,0.00032766,5]
[334338789,1722994243311,-151.0,0.00032766,7]
[334338794,1722994243327,-151.0,0.00032766,7]
[334338796,1722994243336,-151.0,0.00032766,7]
[334338802,1722994243345,-156.331145,0.00032766,7]
[334338808,1722994243354,-151.560005,0.00032766,7]
[334338814,1722994243365,-151.0,0.00032766,7]
[334338818,1722994243375,-200.0,0.00032776,2]
[334338820,1722994243384,-151.493387,0.00032845,7]
[334338823,1722994243394,-151.0,0.00032845,7]
[334338826,1722994243404,-281.123693,0.00032845,7]
[334338828,1722994243412,-281.123693,0.00032845,7]
[334338831,1722994243422,-185.314197,0.00032845,7]
[334338833,1722994243431,-152.695977,0.00032865,7]
[334338835,1722994243441,-151.0,0.00032865,7]
[334338837,1722994243450,-151.0,0.00032865,7]
[334338839,1722994243460,-2000.0,0.00032865,2]
[334338841,1722994243469,-1282.76566051,0.00032865,2]
[334338843,1722994243479,-151.0,0.00032865,7]
[334338845,1722994243489,-151.0,0.00032865,7]
[334338847,1722994243499,-494.99042,0.00032865,7]
[334338849,1722994243509,-494.99042,0.00032865,7]
[334338851,1722994243519,-151.0,0.00032865,7]
[334338853,1722994243530,-151.0,0.00032865,7]
[334338855,1722994243541,-151.216178,0.00032865,7]
[334338857,1722994243552,-151.0,0.00032865,7]
[334338859,1722994243561,-151.0,0.00032865,7]
[334338861,1722994243575,-153.79958,0.00032865,7]
[334338863,1722994243585,-153.79958,0.00032865,7]
[334338865,1722994243594,-151.0,0.00032865,7]
[334338867,1722994243606,-151.0,0.00032865,7]
[334338869,1722994243615,-151.0,0.00032865,7]
[334338872,1722994243626,-189.458168,0.00032865,7]
[334338874,1722994243637,-5482.14034574,0.00032875,21]
[334338876,1722994243647,-1614.32,0.00032875,7]
[334338878,1722994243657,-1614.32,0.00032875,7]
[334338880,1722994243667,-1614.32,0.00032875,7]
[334338882,1722994243677,-1614.32,0.00032875,7]
[334338884,1722994243687,-1614.32,0.00032875,7]
[334338886,1722994243697,-1614.32,0.00032875,7]
[334338888,1722994243708,-1614.32,0.00032875,7]
[334338890,1722994243719,-1614.32,0.00032875,7]
[334338892,1722994243729,-1614.32,0.00032875,7]
[334338895,1722994243744,-1614.32,0.00032875,7]
[334338897,1722994243754,-1614.32,0.00032875,7]
[334338899,1722994243763,-1614.32,0.00032875,7]
[334338901,1722994243774,-1614.32,0.00032875,7]
[334338903,1722994243784,-1614.32,0.00032875,7]
[334338905,1722994243793,-1614.32,0.00032875,7]
[334338907,1722994243803,-1614.32,0.00032875,7]
[334338909,1722994243813,-1614.32,0.00032875,7]
[334338911,1722994243831,-1614.32,0.00032875,7]
[334338913,1722994243843,-1614.32,0.00032875,7]
[334338915,1722994243853,-2212.83608624,0.00032876,21]
[334338917,1722994243862,-500.0,0.00032876,14]
[334338919,1722994243872,-496.63300179,0.00032876,14]
[334338921,1722994243882,-500.0,0.00032876,14]
[334338923,1722994243891,-500.0,0.00032876,14]
[334338926,1722994243900,-512.42,0.00032876,14]
[334338930,1722994243909,-500.0,0.00032876,14]
[334338934,1722994243918,-500.0,0.00032876,14]
[334338938,1722994243927,-500.0,0.00032876,14]
[334338940,1722994243936,-500.0,0.00032876,14]
[334338942,1722994243946,-152.398185,0.00032876,7]
[334338944,1722994243955,-523.72376375,0.00032876,14]
[334338946,1722994243964,-500.0,0.00032876,14]
[334338948,1722994243974,-500.0,0.00032876,14]
[334338950,1722994243984,-500.0,0.00032876,14]
[334338952,1722994243993,-500.0,0.00032876,14]
[334338954,1722994244003,-824.54,0.00032876,14]
[334338956,1722994244012,-500.0,0.00032876,14]
[334338958,1722994244022,-500.0,0.00032876,14]
[334338960,1722994244031,-645.81,0.00032876,14]
[334338962,1722994244041,-500.0,0.00032876,14]
[334338964,1722994244050,-500.0,0.00032876,14]
[334338966,1722994244060,-500.0,0.00032876,14]
[334338968,1722994244078,-1261.9,0.00032876,14]
[334338970,1722994244088,-500.0,0.00032876,14]
[334338972,1722994244097,-963.0,0.00032876,14]
[334338974,1722994244106,-572.93,0.00032876,14]
[334338976,1722994244116,-500.0,0.00032876,14]
[334338978,1722994244125,-500.0,0.00032876,14]
[334338980,1722994244134,-500.0,0.00032876,14]
[334338982,1722994244144,-278.53001756,0.00032876,14]
[334338984,1722994244153,-500.0,0.00032876,14]
[334338986,1722994244164,-2782.69,0.00032876,14]
[334338988,1722994244173,-1301.08,0.00032876,14]
[334338990,1722994244183,-500.0,0.00032876,14]
[334338992,1722994244194,-695.46,0.00032876,14]
[334338994,1722994244204,-500.0,0.00032876,14]
[334338996,1722994244215,-565.72538103,0.00032876,14]
[334338998,1722994244226,-500.0,0.00032876,14]
[334339000,1722994244234,-151.0,0.00032876,7]
[334339002,1722994244245,-548.58,0.00032876,14]
[334339005,1722994244255,-500.0,0.00032876,14]
[334339007,1722994244265,-2626.89,0.00032876,14]
[334339009,1722994244274,-317.70368388,0.00032876,14]
[334339011,1722994244285,-500.0,0.00032876,14]
[334339013,1722994244295,-500.0,0.00032876,14]
[334339015,1722994244306,-567.06,0.00032876,14]
[334339017,1722994244317,-500.0,0.00032876,14]
[334339020,1722994244334,-908.47,0.00032876,14]
[334339021,1722994244348,-151.0,0.00032876,7]
[334339024,1722994244357,-151.0,0.00032876,7]
[334339025,1722994244367,-713.84,0.00032876,14]
[334339027,1722994244376,-500.0,0.00032876,14]
[334339029,1722994244385,-500.0,0.00032876,14]
[334339031,1722994244395,-500.0,0.00032876,14]
[334339033,1722994244404,-500.0,0.00032876,14]
[334339035,1722994244412,-500.0,0.00032876,14]
[334339037,1722994244422,-820.44,0.00032876,14]
[334339039,1722994244431,-500.0,0.00032876,14]
[334339041,1722994244440,-670.26,0.00032876,14]
[334339043,1722994244450,-443.62849097,0.00032876,10]
[334339046,1722994244465,-56.37150903,0.00032876,10]
[334339048,1722994244474,-500.0,0.00032876,14]
[334339050,1722994244484,-500.0,0.00032876,14]
[334339052,1722994244493,-500.0,0.00032876,14]
[334339054,1722994244502,-530.09,0.00032876,14]
[334339056,1722994244511,-500.0,0.00032876,14]
[334339058,1722994244520,-500.0,0.00032876,14]
[334339060,1722994244531,-500.0,0.00032876,14]
[334339062,1722994244542,-500.0,0.00032876,14]
[334339064,1722994244551,-500.0,0.00032876,14]
[334339066,1722994244561,-500.0,0.00032876,14]
[334339068,1722994244572,-520.25,0.00032876,14]
[334339070,1722994244581,-500.0,0.00032876,14]
[334339072,1722994244591,-821.5,0.00032876,14]
[334339074,1722994244602,-500.0,0.00032876,14]
[334339076,1722994244611,-532.47,0.00032876,14]
[334339078,1722994244623,-500.0,0.00032876,14]
[334339080,1722994244632,-500.0,0.00032876,14]
[334339082,1722994244642,-500.0,0.00032876,14]
[334339084,1722994244651,-500.0,0.00032876,14]
[334339087,1722994244668,-500.0,0.00032876,14]
[334339088,1722994244677,-1004.67,0.00032876,14]
[334339090,1722994244686,-505.53,0.00032876,14]
[334339092,1722994244695,-500.0,0.00032876,14]
[334339094,1722994244705,-500.0,0.00032876,14]
[334339096,1722994244714,-500.0,0.00032876,14]
[334339098,1722994244724,-500.0,0.00032876,14]
[334339100,1722994244734,-229.26697594,0.00032876,14]
[334339102,1722994244745,-253.92628612,0.00032876,14]
[334339104,1722994244755,-500.0,0.00032876,14]
[334339106,1722994244765,-500.0,0.00032876,14]
[334339108,1722994244775,-500.0,0.00032876,14]
[334339110,1722994244784,-3233.15,0.00032876,14]
[334339112,1722994244793,-500.0,0.00032876,14]
[334339114,1722994244803,-500.0,0.00032876,14]
[334339116,1722994244813,-583.85,0.00032876,14]
[334339118,1722994244829,-500.0,0.00032876,14]
[334339120,1722994244839,-1141.71,0.00032876,14]
[334339122,1722994244849,-859.2,0.00032876,14]
[334339124,1722994244858,-1265.33,0.00032876,14]
[334339126,1722994244867,-500.0,0.00032876,14]
[334339128,1722994244876,-500.0,0.00032876,14]
[334339130,1722994244886,-500.0,0.00032876,14]
[334339132,1722994244895,-500.0,0.00032876,14]
[334339134,1722994244905,-507.38438148,0.00032876,14]
[334339136,1722994244915,-500.0,0.00032876,14]
[334339138,1722994244924,-592.39,0.00032876,14]
[334339140,1722994244933,-500.0,0.00032876,14]
[334339142,1722994244943,-1458.03,0.00032876,14]
[334339144,1722994244953,-500.0,0.00032876,14]
[334339146,1722994244963,-500.0,0.00032876,14]
[334339148,1722994244973,-639.0413104,0.00032876,14]
[334339150,1722994244983,-2659.84,0.00032876,14]
[334339152,1722994244992,-500.0,0.00032876,14]
[334339154,1722994245003,-500.0,0.00032876,14]
[334339156,1722994245014,-500.0,0.00032876,14]
[334339158,1722994245024,-500.0,0.00032876,14]
[334339160,1722994245038,-810.22,0.00032876,14]
[334339162,1722994245048,-700.44,0.00032876,14]
[334339164,1722994245058,-2075.41,0.00032876,14]
[334339166,1722994245068,-1182.96,0.00032876,14]
[334339168,1722994245089,-1142.73,0.00032876,14]
[334339170,1722994245099,-500.0,0.00032876,14]
[334339172,1722994245108,-500.0,0.00032876,14]
[334339174,1722994245118,-151.0,0.00032876,7]
[334339176,1722994245127,-151.0,0.00032876,7]
[334339178,1722994245136,-151.0,0.00032876,7]
[334339180,1722994245145,-151.0,0.00032876,7]
[334339182,1722994245154,-382.85866233,0.00032876,14]
[334339184,1722994245163,-151.0,0.00032876,7]
[334339186,1722994245173,-1760.75,0.00032876,14]
[334339188,1722994245183,-151.0,0.00032876,7]
[334339190,1722994245193,-151.0,0.00032876,7]
[334339192,1722994245202,-151.0,0.00032876,7]
[334339194,1722994245211,-222.968748,0.00032876,7]
[334339196,1722994245220,-500.0,0.00032876,14]
[334339198,1722994245230,-628.32,0.00032876,14]
[334339200,1722994245239,-1076.58,0.00032876,14]
[334339202,1722994245250,-998.48,0.00032876,14]
[334339204,1722994245260,-500.0,0.00032876,14]
[334339206,1722994245270,-500.0,0.00032876,14]
[334339208,1722994245280,-500.0,0.00032876,14]
[334339210,1722994245290,-516.21,0.00032876,14]
[334339212,1722994245299,-319.05137873,0.00032876,14]
[334339214,1722994245311,-500.0,0.00032876,14]
[334339216,1722994245328,-972.73,0.00032876,14]
[334339218,1722994245339,-604.39,0.00032876,14]
[334339219,1722994245348,-500.0,0.00032876,14]
[334339221,1722994245358,-500.0,0.00032876,14]
[334339223,1722994245369,-702.5,0.00032876,14]
[334339224,1722994245378,-2929.47,0.00032876,14]
[334339226,1722994245388,-500.0,0.00032876,14]
[334339228,1722994245398,-903.83,0.00032876,14]
[334339230,1722994245409,-500.0,0.00032876,14]
[334339231,1722994245419,-3645.49,0.00032876,14]
[334339233,1722994245428,-2194.71,0.00032876,14]
[334339235,1722994245438,-500.0,0.00032876,14]
[334339236,1722994245449,-1563.66,0.00032876,14]
[334339238,1722994245459,-908.93,0.00032876,14]
[334339240,1722994245469,-500.0,0.00032876,14]
[334339242,1722994245479,-500.0,0.00032876,14]
[334339243,1722994245488,-439.52032172,0.00032876,14]
[334339245,1722994245498,-1633.43,0.00032876,14]
[334339247,1722994245508,-500.0,0.00032876,14]
[334339249,1722994245518,-500.0,0.00032876,14]
[334339250,1722994245528,-500.0,0.00032876,14]
[334339252,1722994245537,-500.0,0.00032876,14]
[334339254,1722994245547,-500.0,0.00032876,14]
[334339256,1722994245557,-500.0,0.00032876,14]
[334339257,1722994245566,-500.0,0.00032876,14]
[334339259,1722994245584,-1505.77,0.00032876,14]
[334339261,1722994245594,-1971.63,0.00032876,14]
[334339263,1722994245603,-672.78,0.00032876,14]
[334339265,1722994245614,-924.75,0.00032876,14]
[334339266,1722994245624,-3793.22,0.00032876,14]
[334339268,1722994245634,-500.0,0.00032876,14]
[334339270,1722994245643,-500.0,0.00032876,14]
[334339271,1722994245653,-500.0,0.00032876,14]
[334339273,1722994245662,-500.0,0.00032876,14]
[334339275,1722994245672,-614.60114101,0.00032876,14]
[334339276,1722994245683,-500.0,0.00032876,14]
[334339278,1722994245694,-598.33,0.00032876,14]
[334339280,1722994245704,-2923.48,0.00032876,14]
[334339282,1722994245715,-500.0,0.00032876,14]
[334339293,1722994245852,-500.0,0.00032876,14]
[334339296,1722994245894,-500.0,0.00032876,14]
[334339298,1722994245904,-500.0,0.00032876,14]
[334339300,1722994245913,-506.44,0.00032876,14]
[334339301,1722994245922,-1421.17,0.00032876,14]
[334339303,1722994245932,-587.75,0.00032876,14]
[334339305,1722994245942,-1174.33,0.00032876,14]
[334339307,1722994245951,-500.0,0.00032876,14]
[334339309,1722994245961,-572.84,0.00032876,14]
[334339310,1722994245972,-1993.79,0.00032876,14]
[334339312,1722994245981,-500.0,0.00032876,14]
[334339314,1722994245992,-500.0,0.00032876,14]
[334339316,1722994246003,-680.75,0.00032876,14]
[334339317,1722994246013,-1100.82,0.00032876,14]
[334339319,1722994246023,-500.0,0.00032876,14]
[334339321,1722994246033,-500.0,0.00032876,14]
[334339322,1722994246043,-200.0,0.00032876,7]
[334339323,1722994246053,-1015.19,0.00032876,14]
[334339324,1722994246062,-641.11,0.00032876,14]
[334339325,1722994246079,-500.0,0.00032876,14]
[334339326,1722994246089,-500.0,0.00032876,14]
[334339327,1722994246098,-500.0,0.00032876,14]
[334339328,1722994246108,-151.0,0.00032876,7]
[334339329,1722994246117,-151.0,0.00032876,7]
[334339330,1722994246127,-500.0,0.00032876,14]
[334339331,1722994246137,-151.0,0.00032876,7]
[334339332,1722994246148,-151.0,0.00032876,7]
[334339333,1722994246157,-151.0,0.00032876,7]
[334339334,1722994246168,-1851.23,0.00032876,14]
[334339335,1722994246177,-508.09,0.00032876,14]
[334339336,1722994246186,-500.0,0.00032876,14]
[334339337,1722994246196,-500.0,0.00032876,14]
[334339338,1722994246206,-556.28,0.00032876,14]
[334339339,1722994246216,-514.33,0.00032876,14]
[334339340,1722994246225,-500.0,0.00032876,14]
[334339341,1722994246235,-500.0,0.00032876,14]
[334339342,1722994246245,-500.0,0.00032876,14]
[334339343,1722994246254,-1110.98,0.00032876,14]
[334339344,1722994246264,-500.0,0.00032876,14]
[334339346,1722994246274,-281.123693,0.00032876,7]
[334339348,1722994246284,-281.123693,0.00032876,7]
[334339349,1722994246295,-281.123693,0.00032876,7]
[334339351,1722994246305,-500.0,0.00032876,14]
[334339353,1722994246315,-281.123693,0.00032876,7]
[334339354,1722994246331,-281.123693,0.00032876,7]
[334339356,1722994246340,-500.0,0.00032876,14]
[334339358,1722994246350,-281.123693,0.00032876,7]
[334339359,1722994246361,-281.123693,0.00032876,7]
[334339361,1722994246371,-281.123693,0.00032876,7]
[334339363,1722994246381,-281.123693,0.00032876,7]
[334339364,1722994246391,-281.123693,0.00032876,7]
[334339366,1722994246400,-1003.04,0.00032876,14]
[334339368,1722994246410,-152.695977,0.00032876,7]
[334339369,1722994246420,-2457.91,0.00032876,14]
[334339371,1722994246430,-500.0,0.00032876,14]
[334339372,1722994246439,-152.695977,0.00032876,7]
[334339373,1722994246450,-152.695977,0.00032876,7]
[334339374,1722994246460,-152.695977,0.00032876,7]
[334339375,1722994246470,-152.695977,0.00032876,7]
[334339376,1722994246479,-152.695977,0.00032876,7]
[334339377,1722994246489,-152.695977,0.00032876,7]
[334339378,1722994246499,-152.695977,0.00032876,7]
[334339379,1722994246509,-500.0,0.00032876,14]
[334339380,1722994246518,-2400.09,0.00032876,14]
[334339381,1722994246527,-500.0,0.00032876,14]
[334339382,1722994246537,-620.26,0.00032876,14]
[334339383,1722994246547,-500.0,0.00032876,14]
[334339384,1722994246556,-500.0,0.00032876,14]
[334339385,1722994246566,-500.0,0.00032876,14]
[334339386,1722994246581,-579.83,0.00032876,14]
[334339387,1722994246592,-500.0,0.00032876,14]
[334339388,1722994246601,-500.0,0.00032876,14]
[334339389,1722994246612,-500.0,0.00032876,14]
[334339390,1722994246622,-151.0,0.00032876,7]
[334339391,1722994246631,-500.0,0.00032876,14]
[334339392,1722994246641,-500.0,0.00032876,14]
[334339394,1722994246651,-761.28,0.00032876,14]
[334339396,1722994246661,-500.0,0.00032876,14]
[334339397,1722994246671,-500.0,0.00032876,14]
[334339399,1722994246681,-517.4,0.00032876,14]
[334339401,1722994246691,-500.0,0.00032876,14]
[334339403,1722994246701,-570.84,0.00032876,14]
[334339405,1722994246712,-500.0,0.00032876,14]
[334339406,1722994246722,-502.93505868,0.00032876,14]
[334339408,1722994246733,-2390.0,0.00032876,14]
[334339410,1722994246743,-1049.93,0.00032876,14]
[334339411,1722994246754,-500.0,0.00032876,14]
[334339413,1722994246764,-587.49702241,0.00032876,14]
[334339415,1722994246773,-605.62,0.00032876,14]
[334339416,1722994246783,-500.0,0.00032876,14]
[334339418,1722994246794,-500.0,0.00032876,14]
[334339420,1722994246803,-500.0,0.00032876,14]
[334339422,1722994246813,-500.0,0.00032876,14]
[334339423,1722994246826,-500.0,0.00032876,14]
[334339425,1722994246836,-690.83,0.00032876,14]
[334339427,1722994246845,-335.364178,0.00032876,7]
[334339429,1722994246855,-335.364178,0.00032876,7]
[334339430,1722994246864,-335.364178,0.00032876,7]
[334339432,1722994246874,-928.92,0.00032876,14]
[334339434,1722994246884,-1000.0,0.00032876,5]
[334339436,1722994246894,-500.0,0.00032876,14]
[334339438,1722994246906,-151.0,0.00032876,7]
[334339440,1722994246917,-771.32,0.00032876,14]
[334339441,1722994246928,-500.0,0.00032876,14]
[334339443,1722994246939,-2706.79,0.00032876,14]
[334339445,1722994246949,-151.0,0.00032876,7]
[334339447,1722994246959,-151.0,0.00032876,7]
[334339449,1722994246970,-328.30911765,0.00032876,7]
[334339451,1722994246981,-3987.18,0.00032876,14]
[334339453,1722994246991,-500.0,0.00032876,14]
[334339454,1722994247001,-500.0,0.00032876,14]
[334339456,1722994247010,-1857.01,0.00032876,14]
[334339458,1722994247021,-518.41,0.00032876,14]
[334339460,1722994247030,-500.0,0.00032876,14]
[334339461,1722994247039,-500.0,0.00032876,14]
[334339463,1722994247049,-526.03,0.00032876,14]
[334339465,1722994247058,-500.0,0.00032876,14]
[334339467,1722994247069,-500.0,0.00032876,14]
[334339469,1722994247080,-500.0,0.00032876,14]
[334339470,1722994247090,-601.39,0.00032876,14]
[334339472,1722994247099,-500.0,0.00032876,14]
[334339474,1722994247109,-500.0,0.00032876,14]
[334339476,1722994247118,-500.0,0.00032876,14]
[334339478,1722994247128,-500.0,0.00032876,14]
[334339479,1722994247137,-500.0,0.00032876,2]
[334339481,1722994247147,-1808.96,0.00032876,14]
[334339483,1722994247156,-500.0,0.00032876,14]
[334339485,1722994247165,-572.82,0.00032876,14]
[334339486,1722994247174,-500.0,0.00032876,14]
[334339488,1722994247184,-151.0,0.00032876,7]
[334339490,1722994247193,-151.0,0.00032876,7]
[334339492,1722994247203,-151.0,0.00032876,7]
[334339493,1722994247212,-500.0,0.00032876,14]
[334339495,1722994247221,-500.0,0.00032876,14]
[334339497,1722994247231,-151.0,0.00032876,7]
[334339499,1722994247241,-268.890396,0.00032876,7]
[334339501,1722994247251,-500.0,0.00032876,14]
[334339502,1722994247260,-500.0,0.00032876,14]
[334339504,1722994247270,-824.98,0.00032876,14]
[334339506,1722994247279,-500.0,0.00032876,14]
[334339508,1722994247289,-500.0,0.00032876,14]
[334339509,1722994247299,-305.64838923,0.00032876,14]
[334339511,1722994247309,-520.58,0.00032876,14]
[334339513,1722994247319,-500.0,0.00032876,14]
[334339515,1722994247330,-621.09,0.00032876,14]
[334339517,1722994247340,-500.0,0.00032876,14]
[334339518,1722994247349,-20747.94,0.00032876,14]
[334339520,1722994247359,-684.2,0.00032876,14]
[334339522,1722994247368,-727.44,0.00032876,14]
[334339524,1722994247378,-500.0,0.00032876,14]
[334339525,1722994247388,-500.0,0.00032876,14]
[334339527,1722994247397,-1306.92,0.00032876,14]
[334339529,1722994247407,-500.0,0.00032876,14]
[334339531,1722994247417,-586.86,0.00032876,14]
[334339533,1722994247426,-635.06,0.00032876,14]